lending/lending_fUSD_20241214
["ID","MTS","AMOUNT","RATE_DAILY","PERIOD"]
[345353015,1734175840458,-502.53073492,0.00021249,3]
[345353016,1734175840468,-500.0,0.00021249,3]
[345353017,1734175840477,-605.13,0.00021249,3]
[345353018,1734175840487,-500.0,0.00021249,3]
[345353019,1734175840496,-459.68,0.00021249,3]
[345353020,1734175840506,-500.0,0.00021249,3]
[345353021,1734175840516,-500.0,0.00021249,3]
[345353022,1734175840525,-500.0,0.00021249,3]
[345353023,1734175840534,-500.0,0.00021249,3]
[345353024,1734175840542,-500.0,0.00021249,3]
[345353025,1734175840552,-500.0,0.00021249,3]
[345353026,1734175840561,-500.0,0.00021249,3]
[345353027,1734175840570,-500.0,0.00021249,3]
[345353028,1734175840579,-500.0,0.00021249,3]
[345353029,1734175840589,-500.0,0.00021249,3]
[345353030,1734175840598,-500.0,0.00021249,3]
[345353031,1734175840607,-500.0,0.00021249,3]
[345353032,1734175840616,-500.0,0.00021249,3]
[345353033,1734175840625,-500.0,0.00021249,3]
[345353034,1734175840634,-518.24,0.00021249,3]
[345353035,1734175840643,-201.88,0.00021249,3]
[345353036,1734175840652,-500.0,0.00021249,3]
[345353037,1734175840661,-500.0,0.00021249,3]
[345353038,1734175840670,-500.0,0.00021249,3]
[345353039,1734175840679,-500.0,0.00021249,3]
[345353040,1734175840688,-500.0,0.00021249,3]
[345353041,1734175840697,-500.0,0.00021249,3]
[345353042,1734175840707,-500.0,0.00021249,3]
[345353043,1734175840716,-500.0,0.00021249,3]
[345353044,1734175840725,-164.68,0.00021249,3]
[345353045,1734175840734,-500.0,0.00021249,3]
[345353046,1734175840743,-184.33,0.00021249,3]
[345353047,1734175840751,-500.0,0.00021249,3]
[345353048,1734175840759,-500.0,0.00021249,3]
[345353049,1734175840768,-500.0,0.00021249,3]
[345353050,1734175840777,-243.58520973,0.00021249,3]
[345353051,1734175840787,-160.32,0.00021249,3]
[345353052,1734175840796,-351.55,0.00021249,3]
[345353053,1734175840805,-500.0,0.00021249,3]
[345353054,1734175840815,-500.0,0.00021249,3]
[345353055,1734175840824,-500.0,0.00021249,3]
[345353056,1734175840833,-500.0,0.00021249,3]
[345353057,1734175840844,-500.0,0.00021249,3]
[345353058,1734175840853,-398.93253538,0.00021249,3]
[345353059,1734175840862,-500.0,0.00021249,3]
[345353060,1734175840871,-500.0,0.00021249,3]
[345353061,1734175840880,-500.0,0.00021249,3]
[345353062,1734175840889,-500.0,0.00021249,3]
[345353063,1734175840898,-500.0,0.00021249,3]
[345353064,1734175840907,-500.0,0.00021249,3]
[345353065,1734175840916,-500.0,0.00021249,3]
[345353066,1734175840925,-500.0,0.00021249,3]
[345353067,1734175840935,-464.08,0.00021249,3]
[345353068,1734175840944,-500.0,0.00021249,3]
[345353069,1734175840953,-271.41370508,0.00021249,3]
[345353070,1734175840963,-500.0,0.00021249,3]
[345353071,1734175840972,-500.0,0.00021249,3]
[345353072,1734175840981,-500.0,0.00021249,3]
[345353073,1734175840990,-500.0,0.00021249,3]
[345353074,1734175840999,-500.0,0.00021249,3]
[345353075,1734175841008,-500.0,0.00021249,3]
[345353076,1734175841018,-500.0,0.00021249,3]
[345353077,1734175841027,-500.0,0.00021249,3]
[345353078,1734175841036,-542.27,0.00021249,3]
[345353079,1734175841045,-623.27999996,0.00021249,3]
[345353080,1734175841053,-500.0,0.00021249,3]
[345353081,1734175841063,-500.0,0.00021249,3]
[345353082,1734175841072,-500.0,0.00021249,3]
[345353083,1734175841081,-500.0,0.00021249,3]
[345353084,1734175841091,-509.29,0.00021249,3]
[345353085,1734175841100,-637.7,0.00021249,3]
[345353086,1734175841109,-500.0,0.00021249,3]
[345353087,1734175841118,-500.0,0.00021249,3]
[345353088,1734175841127,-500.0,0.00021249,3]
[345353089,1734175841136,-500.0,0.00021249,3]
[345353090,1734175841145,-500.0,0.00021249,3]
[345353091,1734175841154,-500.0,0.00021249,3]
[345353092,1734175841166,-500.0,0.00021249,3]
[345353093,1734175841175,-500.0,0.00021249,3]
[345353094,1734175841184,-500.0,0.00021249,3]
[345353095,1734175841193,-500.0,0.00021249,3]
[345353096,1734175841202,-500.0,0.00021249,3]
[345353097,1734175841212,-500.0,0.00021249,3]
[345353098,1734175841222,-500.0,0.00021249,3]
[345353099,1734175841231,-500.0,0.00021249,3]
[345353100,1734175841240,-500.0,0.00021249,3]
[345353101,1734175841249,-500.0,0.00021249,3]
[345353102,1734175841257,-500.0,0.00021249,3]
[345353103,1734175841267,-500.0,0.00021249,3]
[345353104,1734175841275,-500.0,0.00021249,3]
[345353105,1734175841284,-500.0,0.00021249,3]
[345353106,1734175841293,-500.0,0.00021249,3]
[345353107,1734175841302,-500.0,0.00021249,3]
[345353108,1734175841311,-500.0,0.00021249,3]
[345353109,1734175841320,-500.0,0.00021249,3]
[345353110,1734175841329,-631.26,0.00021249,3]
[345353111,1734175841340,-500.0,0.00021249,3]
[345353112,1734175841349,-500.0,0.00021249,3]
[345353113,1734175841358,-500.0,0.00021249,3]
[345353114,1734175841368,-500.0,0.00021249,3]
[345353115,1734175841377,-500.0,0.00021249,3]
[345353116,1734175841386,-500.0,0.00021249,3]
[345353117,1734175841396,-500.0,0.00021249,3]
[345353118,1734175841405,-490.00829842,0.00021249,3]
[345353119,1734175841414,-500.0,0.00021249,3]
[345353120,1734175841423,-500.0,0.00021249,3]
[345353121,1734175841432,-500.0,0.00021249,3]
[345353122,1734175841442,-500.0,0.00021249,3]
[345353123,1734175841451,-157.26,0.00021249,3]
[345353124,1734175841461,-500.0,0.00021249,3]
[345353125,1734175841470,-500.0,0.00021249,3]
[345353126,1734175841479,-500.0,0.00021249,3]
[345353127,1734175841488,-500.0,0.00021249,3]
[345353128,1734175841497,-500.0,0.00021249,3]
[345353129,1734175841507,-500.0,0.00021249,3]
[345353130,1734175841516,-500.0,0.00021249,3]
[345353131,1734175841525,-500.0,0.00021249,3]
[345353132,1734175841534,-500.0,0.00021249,3]
[345353133,1734175841544,-322.96244873,0.00021249,3]
[345353134,1734175841552,-500.0,0.00021249,3]
[345353135,1734175841562,-500.0,0.00021249,3]
[345353136,1734175841571,-500.0,0.00021249,3]
[345353137,1734175841579,-500.0,0.00021249,3]
[345353138,1734175841589,-500.0,0.00021249,3]
[345353139,1734175841598,-500.0,0.00021249,3]
[345353140,1734175841607,-500.0,0.00021249,3]
[345353141,1734175841616,-500.0,0.00021249,3]
[345353142,1734175841625,-500.0,0.00021249,3]
[345353143,1734175841634,-500.0,0.00021249,3]
[345353144,1734175841643,-500.0,0.00021249,3]
[345353145,1734175841652,-550.1,0.00021249,3]
[345353146,1734175841661,-1000.0,0.00021249,3]
[345353147,1734175841670,-1000.0,0.00021249,3]
[345353148,1734175841679,-1000.0,0.00021249,3]
[345353149,1734175841688,-1000.0,0.00021249,3]
[345353150,1734175841697,-1000.0,0.00021249,3]
[345353151,1734175841706,-1000.0,0.00021249,3]
[345353152,1734175841715,-500.0,0.00021249,3]
[345353153,1734175841724,-500.0,0.00021249,3]
[345353154,1734175841733,-500.0,0.00021249,3]
[345353155,1734175841743,-500.0,0.00021249,3]
[345353156,1734175841752,-500.0,0.00021249,3]
[345353157,1734175841761,-500.0,0.00021249,3]
[345353158,1734175841771,-500.0,0.00021249,3]
[345353159,1734175841781,-500.0,0.00021249,3]
[345353160,1734175841791,-500.0,0.00021249,3]
[345353161,1734175841800,-500.0,0.00021249,3]
[345353162,1734175841809,-500.0,0.00021249,3]
[345353163,1734175841819,-500.0,0.00021249,3]
[345353164,1734175841829,-500.0,0.00021249,3]
[345353165,1734175841839,-500.0,0.00021249,3]
[345353166,1734175841849,-500.0,0.00021249,3]
[345353167,1734175841859,-500.0,0.00021249,3]
[345353168,1734175841868,-500.0,0.00021249,3]
[345353169,1734175841878,-500.0,0.00021249,3]
[345353170,1734175841887,-500.0,0.00021249,3]
[345353171,1734175841896,-500.0,0.00021249,3]
[345353172,1734175841907,-500.0,0.00021249,3]
[345353173,1734175841916,-500.0,0.00021249,3]
[345353174,1734175841926,-500.0,0.00021249,3]
[345353175,1734175841935,-500.0,0.00021249,3]
[345353176,1734175841943,-500.0,0.00021249,3]
[345353177,1734175841953,-500.0,0.00021249,3]
[345353178,1734175841962,-500.0,0.00021249,3]
[345353179,1734175841971,-555.3,0.00021249,3]
[345353180,1734175841980,-500.0,0.00021249,3]
[345353181,1734175841989,-500.0,0.00021249,3]
[345353182,1734175841999,-328.35,0.00021249,3]
[345353183,1734175842008,-210225.47577345,0.0002125,4]
[345353184,1734175842017,-4633.6645752,0.0002125,2]
[345353185,1734175842026,-6283.1812228,0.0002125,2]
[345353186,1734175842035,-849.0,0.0002125,2]
[345353187,1734175842159,-213614.0,0.0002125,2]
[345353188,1734175842170,-11688133.80606921,0.0002125,2]
[345353189,1734175842327,-4218.56252675,0.0002125,2]
[345353190,1734175842342,-881.83821153,0.0002125,2]
[345353191,1734175842358,-4323.35320756,0.0002125,2]
[345353192,1734175842369,-550.68178164,0.0002125,2]
[345353193,1734175842398,-500.0,0.00021245,3]
[345353194,1734175842408,-492.05,0.00021249,3]
[345353195,1734175842417,-31833.75965021,0.0002125,2]
[345353196,1734175842428,-390.005,0.0002125,2]
[345353197,1734175843814,-3474.91,0.0002125,2]
[345353199,1734175844725,500.0,0.00017414,2]
[345353201,1734175846548,-570.22953835,0.00021095,3]
[345353202,1734175846558,-64.01349049,0.0002125,2]
[345353203,1734175846569,-648.98650951,0.0002125,2]
[345353204,1734175846578,-1783.95263049,0.0002125,2]
[345353205,1734175846589,-601.94,0.0002125,2]
[345353206,1734175846601,-634.65,0.0002125,2]
[345353207,1734175846611,-308.69581355,0.0002125,2]
[345353208,1734175895599,741.33,0.00018431,2]
[345353209,1734175990119,172.51,0.00010137,2]
[345353219,1734176829167,-172.51,0.00016813,2]
[345353220,1734176829190,-255.19161246,0.00017414,2]
[345353221,1734176845134,-167.69514933,0.00017414,2]
[345353222,1734176845155,-500.0,0.00017414,2]
[345353223,1734176845175,-200.63450271,0.00017939,2]
[345353224,1734176947098,-764.4332496,0.000178,2]
[345353225,1734176947125,-1483.5528915,0.000178,2]
[345353226,1734176947154,-503.62549729,0.00017939,2]
[345353227,1734176947174,-2674.23132559,0.000189,2]
[345353237,1734177032384,-1000.0,0.000198,2]
[345353238,1734177032394,-146.145,0.0001986,2]
[345353239,1734177032406,-1821.034051,0.0001986,2]
[345353240,1734177032416,-337.23,0.00019908,2]
[345353241,1734177032425,-151.29,0.0001996,2]
[345353242,1734177032435,-1000.0,0.00019991,2]
[345353243,1734177032444,-250.0,0.0002007,2]
[345353244,1734177032454,-150.0,0.00020137,2]
[345353245,1734177032464,-156.27,0.00020172,2]
[345353246,1734177032473,-244.012,0.0002019,2]
[345353247,1734177032482,-156.27,0.00020197,2]
[345353248,1734177032491,-704.26,0.00020203,2]
[345353249,1734177032500,-200.0,0.0002021,2]
[345353250,1734177032509,-156.27,0.00020222,2]
[345353251,1734177032519,-1896.94,0.00020234,2]
[345353252,1734177032528,-156.27,0.00020247,2]
[345353253,1734177032537,-156.27,0.00020273,2]
[345353254,1734177032547,-975.06,0.00020438,2]
[345353255,1734177032556,-300.0,0.00020824,2]
[345353256,1734177032565,-656.06161645,0.00020825,2]
[345353257,1734177032576,-456.16000023,0.00020825,2]
[345353258,1734177032677,-30.51782365,0.00020825,2]
[345353259,1734177032686,-1075.74046539,0.00020825,2]
[345353260,1734177032695,-151.29,0.00020945,2]
[345353261,1734177032704,-150.99,0.00020951,2]
[345353262,1734177032713,-558.64076234,0.00021,7]
[345353265,1734177038311,-14057.8418036,0.00021,7]
[345353266,1734177038320,-1131.85268,0.0002104,2]
[345353267,1734177038330,-2000.0,0.0002108,2]
[345353268,1734177038349,-500.0,0.0002108,2]
[345353269,1734177038358,-415.1523563,0.00021095,3]
[345353270,1734177038368,-391.72319776,0.00021095,3]
[345353271,1734177038377,-637.84886941,0.00021095,3]
[345353272,1734177038387,-293.29007687,0.00021095,3]
[345353273,1734177038401,-500.0,0.00021095,3]
[345353274,1734177038410,-500.0,0.00021095,3]
[345353275,1734177038420,-500.0,0.00021095,3]
[345353276,1734177038429,-500.0,0.00021095,3]
[345353277,1734177038439,-500.0,0.00021095,3]
[345353278,1734177038448,-500.0,0.00021095,3]
[345353279,1734177038457,-500.0,0.00021095,3]
[345353280,1734177038467,-500.0,0.00021095,3]
[345353281,1734177038477,-507.50074482,0.00021095,3]
[345353282,1734177038486,-500.0,0.00021095,3]
[345353283,1734177038495,-317.6,0.00021095,3]
[345353284,1734177038505,-305.48171729,0.00021095,3]
[345353285,1734177038514,-500.0,0.00021095,3]
[345353286,1734177038524,-500.0,0.00021095,3]
[345353287,1734177038533,-500.0,0.00021095,3]
[345353288,1734177038542,-193.64,0.00021095,3]
[345353289,1734177038552,-256.17070529,0.00021095,3]
[345353290,1734177038562,-500.0,0.00021095,3]
[345353291,1734177038571,-500.0,0.00021095,3]
[345353292,1734177038580,-524.11,0.00021095,3]
[345353293,1734177038590,-500.0,0.00021095,3]
[345353294,1734177038599,-500.0,0.00021095,3]
[345353295,1734177038608,-500.0,0.00021095,3]
[345353296,1734177038617,-500.0,0.00021095,3]
[345353297,1734177038627,-500.72002078,0.00021095,3]
[345353298,1734177038636,-500.0,0.00021095,3]
[345353299,1734177038645,-500.0,0.00021095,3]
[345353300,1734177038654,-500.0,0.00021095,3]
[345353301,1734177038663,-500.0,0.00021095,3]
[345353302,1734177038672,-500.0,0.00021095,3]
[345353303,1734177038681,-500.0,0.00021095,3]
[345353304,1734177038691,-500.0,0.00021095,3]
[345353305,1734177038701,-500.0,0.00021095,3]
[345353306,1734177038710,-500.0,0.00021095,3]
[345353307,1734177038719,-271.41370508,0.00021095,3]
[345353308,1734177038727,-500.0,0.00021095,3]
[345353309,1734177038737,-500.0,0.00021095,3]
[345353310,1734177038747,-500.0,0.00021095,3]
[345353311,1734177038756,-592.78,0.00021095,3]
[345353312,1734177038766,-500.0,0.00021095,3]
[345353313,1734177038775,-320.701,0.00021099,2]
[345353314,1734177038785,-157.56848963,0.00021149,2]
[345353315,1734177038795,-1367.191,0.0002115,2]
[345353316,1734177038805,-500.0,0.00021199,3]
[345353317,1734177038814,-500.0,0.00021199,3]
[345353318,1734177038823,-500.0,0.00021199,3]
[345353319,1734177038832,-500.0,0.00021199,3]
[345353320,1734177038841,-500.0,0.00021199,3]
[345353321,1734177038851,-500.0,0.00021199,3]
[345353322,1734177038861,-500.0,0.00021199,3]
[345353323,1734177038871,-559.29041351,0.00021199,3]
[345353324,1734177038880,-500.0,0.00021199,3]
[345353325,1734177038889,-500.0,0.00021199,3]
[345353326,1734177038898,-192.48,0.000212,2]
[345353327,1734177038907,-422.0,0.000212,9]
[345353328,1734177038917,-500.0,0.00021248,3]
[345353329,1734177038926,-500.0,0.00021248,3]
[345353330,1734177038936,-500.0,0.00021248,3]
[345353331,1734177038946,-353.81,0.00021248,3]
[345353332,1734177038955,-500.0,0.00021248,3]
[345353333,1734177038966,-500.0,0.00021248,3]
[345353334,1734177038976,-500.0,0.00021248,3]
[345353335,1734177038988,-265.15896026,0.00021248,2]
[345353336,1734177038999,-160.62123567,0.00021248,2]
[345353337,1734177039007,-2000.0,0.00021249,2]
[345353338,1734177039019,-307.43647569,0.00021249,5]
[345353339,1734177039028,-276.4,0.00021249,3]
[345353340,1734177039038,-346.76,0.00021249,3]
[345353341,1734177039050,-334.48730215,0.00021249,3]
[345353342,1734177039059,-238.06115733,0.00021249,3]
[345353343,1734177039068,-500.0,0.00021249,3]
[345353344,1734177039077,-571.27,0.00021249,3]
[345353345,1734177039086,-659.53,0.00021249,2]
[345353346,1734177039097,-500.0,0.00021249,3]
[345353347,1734177039107,-500.0,0.00021249,3]
[345353348,1734177039116,-500.0,0.00021249,3]
[345353349,1734177039125,-500.0,0.00021249,3]
[345353350,1734177039134,-500.0,0.00021249,3]
[345353351,1734177039144,-500.0,0.00021249,3]
[345353352,1734177039153,-500.0,0.00021249,3]
[345353353,1734177039163,-500.0,0.00021249,3]
[345353354,1734177039173,-500.0,0.00021249,3]
[345353355,1734177039182,-449.96578769,0.00021249,2]
[345353356,1734177039191,-500.0,0.00021249,3]
[345353357,1734177039201,-500.0,0.00021249,3]
[345353358,1734177039210,-500.0,0.00021249,3]
[345353359,1734177039221,-500.0,0.00021249,3]
[345353360,1734177039231,-500.0,0.00021249,3]
[345353361,1734177039239,-500.0,0.00021249,3]
[345353362,1734177039250,-500.0,0.00021249,3]
[345353363,1734177039259,-500.0,0.00021249,3]
[345353364,1734177039269,-500.0,0.00021249,3]
[345353365,1734177039280,-512.09,0.00021249,3]
[345353366,1734177039291,-500.0,0.00021249,3]
[345353367,1734177039300,-500.65341387,0.00021249,3]
[345353368,1734177039309,-500.0,0.00021249,3]
[345353369,1734177039319,-500.40210588,0.00021249,3]
[345353370,1734177039328,-500.0,0.00021249,3]
[345353371,1734177039337,-500.0,0.00021249,3]
[345353372,1734177039347,-166.76,0.00021249,3]
[345353373,1734177039357,-500.0,0.00021249,3]
[345353374,1734177039367,-500.77660829,0.00021249,3]
[345353375,1734177039376,-500.0,0.00021249,3]
[345353376,1734177039385,-500.0,0.00021249,3]
[345353377,1734177039395,-277.96,0.00021249,3]
[345353378,1734177039404,-333.83195515,0.00021249,3]
[345353379,1734177039413,-306.10704621,0.00021249,3]
[345353380,1734177039423,-500.0,0.00021249,3]
[345353381,1734177039432,-288.56,0.00021249,3]
[345353382,1734177039441,-500.0,0.00021249,3]
[345353383,1734177039451,-500.0,0.00021249,3]
[345353384,1734177039460,-500.0,0.00021249,3]
[345353385,1734177039470,-294.67,0.00021249,3]
[345353386,1734177039479,-500.0,0.00021249,3]
[345353387,1734177039488,-500.0,0.00021249,3]
[345353388,1734177039498,-500.0,0.00021249,3]
[345353389,1734177039507,-500.0,0.00021249,3]
[345353390,1734177039516,-246.1,0.00021249,3]
[345353391,1734177039525,-500.0,0.00021249,3]
[345353392,1734177039535,-500.0,0.00021249,3]
[345353393,1734177039544,-500.0,0.00021249,3]
[345353394,1734177039553,-500.0,0.00021249,3]
[345353395,1734177039563,-500.0,0.00021249,3]
[345353396,1734177039572,-500.0,0.00021249,3]
[345353397,1734177039581,-500.0,0.00021249,3]
[345353398,1734177039590,-500.0,0.00021249,3]
[345353399,1734177039599,-500.0,0.00021249,3]
[345353400,1734177039608,-500.0,0.00021249,3]
[345353401,1734177039788,-244.75,0.00021249,3]
[345353402,1734177039799,-500.0,0.00021249,3]
[345353403,1734177039809,-500.0,0.00021249,3]
[345353404,1734177039819,-1028.07,0.00021249,5]
[345353405,1734177039828,-1028.07,0.00021249,5]
[345353406,1734177039837,-1028.07,0.00021249,5]
[345353407,1734177039847,-1028.07,0.00021249,5]
[345353408,1734177039858,-1028.07,0.00021249,5]
[345353409,1734177039867,-1028.07,0.00021249,5]
[345353410,1734177039876,-1028.07,0.00021249,5]
[345353411,1734177039886,-1028.07,0.00021249,5]
[345353412,1734177039896,-1028.07,0.00021249,5]
[345353413,1734177039906,-1028.07,0.00021249,5]
[345353414,1734177039916,-1028.07,0.00021249,5]
[345353415,1734177039925,-1028.07,0.00021249,5]
[345353416,1734177039935,-1028.07,0.00021249,5]
[345353417,1734177039944,-1028.07,0.00021249,5]
[345353418,1734177039953,-1028.07,0.00021249,5]
[345353419,1734177039963,-1028.07,0.00021249,5]
[345353420,1734177039972,-1028.07,0.00021249,5]
[345353421,1734177039986,-1028.07,0.00021249,5]
[345353422,1734177039995,-1028.07,0.00021249,5]
[345353423,1734177040005,-1028.07,0.00021249,5]
[345353424,1734177040014,-1028.07,0.00021249,5]
[345353425,1734177040024,-1028.07,0.00021249,5]
[345353426,1734177040034,-1028.07,0.00021249,5]
[345353427,1734177040043,-1028.30378814,0.00021249,5]
[345353428,1734177040054,-500.0,0.00021249,3]
[345353429,1734177040064,-500.0,0.00021249,3]
[345353431,1734177040073,-538.64,0.00021249,3]
[345353433,1734177040083,-500.0,0.00021249,3]
[345353435,1734177040092,-500.0,0.00021249,3]
[345353437,1734177040101,-338.88,0.00021249,3]
[345353439,1734177040110,-500.0,0.00021249,3]
[345353440,1734177040120,-506.08,0.00021249,3]
[345353441,1734177040130,-500.0,0.00021249,3]
[345353442,1734177040140,-500.0,0.00021249,3]
[345353443,1734177040149,-500.0,0.00021249,3]
[345353444,1734177040159,-500.0,0.00021249,3]
[345353445,1734177040168,-500.0,0.00021249,3]
[345353446,1734177040177,-500.0,0.00021249,3]
[345353447,1734177040186,-500.0,0.00021249,3]
[345353448,1734177040195,-399.55,0.00021249,3]
[345353449,1734177040204,-500.0,0.00021249,3]
[345353450,1734177040213,-500.0,0.00021249,3]
[345353451,1734177040222,-500.0,0.00021249,3]
[345353452,1734177040231,-647.29,0.00021249,3]
[345353453,1734177040241,-500.0,0.00021249,3]
[345353454,1734177040250,-500.0,0.00021249,3]
[345353455,1734177040259,-500.0,0.00021249,3]
[345353456,1734177040269,-500.0,0.00021249,3]
[345353457,1734177040278,-500.0,0.00021249,3]
[345353458,1734177040287,-500.0,0.00021249,3]
[345353459,1734177040296,-351.55,0.00021249,3]
[345353460,1734177040305,-500.0,0.00021249,3]
[345353461,1734177040314,-351.05,0.00021249,3]
[345353462,1734177040323,-500.0,0.00021249,3]
[345353463,1734177040332,-500.0,0.00021249,3]
[345353464,1734177040341,-500.0,0.00021249,3]
[345353465,1734177040350,-500.0,0.00021249,3]
[345353466,1734177040359,-500.0,0.00021249,3]
[345353467,1734177040368,-500.0,0.00021249,3]
[345353468,1734177040378,-500.0,0.00021249,3]
[345353469,1734177040387,-371.44,0.00021249,3]
[345353470,1734177040395,-500.0,0.00021249,3]
[345353471,1734177040405,-500.0,0.00021249,3]
[345353472,1734177040414,-500.0,0.00021249,3]
[345353473,1734177040422,-500.0,0.00021249,3]
[345353474,1734177040431,-500.0,0.00021249,3]
[345353475,1734177040441,-500.0,0.00021249,3]
[345353476,1734177040450,-500.0,0.00021249,3]
[345353477,1734177040460,-500.0,0.00021249,3]
[345353478,1734177040469,-500.0,0.00021249,3]
[345353479,1734177040479,-500.0,0.00021249,3]
[345353480,1734177040488,-500.0,0.00021249,3]
[345353481,1734177040497,-500.0,0.00021249,3]
[345353482,1734177040507,-500.0,0.00021249,3]
[345353483,1734177040516,-500.0,0.00021249,3]
[345353484,1734177040525,-500.0,0.00021249,3]
[345353485,1734177040534,-500.0,0.00021249,3]
[345353486,1734177040543,-500.0,0.00021249,3]
[345353487,1734177040553,-500.0,0.00021249,3]
[345353488,1734177040564,-635.53,0.00021249,3]
[345353489,1734177040573,-500.0,0.00021249,3]
[345353490,1734177040582,-500.0,0.00021249,3]
[345353491,1734177040591,-500.0,0.00021249,3]
[345353492,1734177040601,-500.0,0.00021249,3]
[345353493,1734177040611,-500.0,0.00021249,3]
[345353494,1734177040621,-500.0,0.00021249,3]
[345353495,1734177040630,-500.0,0.00021249,3]
[345353496,1734177040640,-500.0,0.00021249,3]
[345353497,1734177040650,-500.0,0.00021249,3]
[345353498,1734177040659,-500.0,0.00021249,3]
[345353499,1734177040668,-500.0,0.00021249,3]
[345353500,1734177040678,-500.0,0.00021249,3]
[345353501,1734177040687,-500.0,0.00021249,3]
[345353502,1734177040697,-500.0,0.00021249,3]
[345353503,1734177040706,-500.0,0.00021249,3]
[345353504,1734177040716,-500.0,0.00021249,3]
[345353505,1734177040725,-500.0,0.00021249,3]
[345353506,1734177040735,-500.0,0.00021249,3]
[345353507,1734177040746,-500.0,0.00021249,3]
[345353508,1734177040755,-500.0,0.00021249,3]
[345353509,1734177040765,-500.0,0.00021249,3]
[345353510,1734177040774,-500.0,0.00021249,3]
[345353511,1734177040784,-500.0,0.00021249,3]
[345353512,1734177040793,-570.01,0.00021249,3]
[345353513,1734177040802,-500.0,0.00021249,3]
[345353514,1734177040811,-500.0,0.00021249,3]
[345353515,1734177040820,-500.0,0.00021249,3]
[345353516,1734177040829,-500.0,0.00021249,3]
[345353517,1734177040838,-500.0,0.00021249,3]
[345353518,1734177040847,-500.0,0.00021249,3]
[345353519,1734177040857,-500.0,0.00021249,3]
[345353520,1734177040866,-641.58,0.00021249,3]
[345353521,1734177040875,-500.0,0.00021249,3]
[345353522,1734177040884,-500.0,0.00021249,3]
[345353523,1734177040895,-500.0,0.00021249,3]
[345353524,1734177040904,-500.0,0.00021249,3]
[345353525,1734177040912,-278.59531685,0.00021249,3]
[345353526,1734177040921,-500.0,0.00021249,3]
[345353527,1734177040930,-500.0,0.00021249,3]
[345353528,1734177040940,-500.0,0.00021249,3]
[345353529,1734177040948,-500.0,0.00021249,3]
[345353530,1734177040958,-500.0,0.00021249,3]
[345353531,1734177040967,-500.0,0.00021249,3]
[345353532,1734177040981,-500.0,0.00021249,3]
[345353533,1734177040992,-278.08,0.00021249,3]
[345353534,1734177041006,-500.0,0.00021249,3]
[345353535,1734177041017,-231.52137828,0.00021249,3]
[345353536,1734177041028,-500.0,0.00021249,3]
[345353537,1734177041039,-630.34,0.00021249,3]
[345353538,1734177041048,-500.0,0.00021249,3]
[345353539,1734177041060,-500.0,0.00021249,3]
[345353540,1734177041070,-500.0,0.00021249,3]
[345353541,1734177041081,-500.0,0.00021249,3]